fUST/lending_fUST_20251027
["ID","MTS","AMOUNT","RATE_DAILY","PERIOD"]
[392485024,1761556510339,206.79050221,0.00015081,2]
[392485034,1761556513728,228.45142713,0.00015081,2]
[392485079,1761556522999,164.88010402,0.00014,12]
[392485564,1761556536778,318.12139219,0.00014938,2]
[392485942,1761556560159,318.12139219,0.00014938,2]
[392485966,1761556562731,300.0,0.00015088,2]
[392486026,1761556575099,300.0,0.000149,2]
[392486027,1761556582930,318.12139219,0.00014938,2]
[392486042,1761556586404,300.0,0.000149,2]
[392486043,1761556597503,300.0,0.000149,2]
[392486044,1761556598835,703.91638317,0.0001499,2]
[392486047,1761556605651,9997.33064418,0.00014937,2]
[392486048,1761556608506,300.0,0.000149,2]
[392486049,1761556622859,300.0,0.00015087,2]
[392486050,1761556660155,1200.0,0.00015087,2]
[392486051,1761556683890,300.0,0.00015087,2]
[392486054,1761556711953,500.0,0.00015087,2]
[392486055,1761556711990,500.0,0.00015087,2]
[392486056,1761556712170,500.0,0.00015087,2]
[392486057,1761556712206,500.0,0.00015087,2]
[392486058,1761556712240,500.0,0.00015087,2]
[392486059,1761556712275,500.0,0.00015087,2]
[392486060,1761556712309,500.0,0.00015087,2]
[392486061,1761556712359,500.0,0.00015087,2]
[392486062,1761556712410,500.0,0.00015087,2]
[392486063,1761556712445,500.0,0.00015087,2]
[392486064,1761556712492,500.0,0.00015087,2]
[392486065,1761556712529,500.0,0.00015087,2]
[392486066,1761556712564,208.23340476,0.00015087,2]
[392486067,1761556712599,500.0,0.00015087,2]
[392486068,1761556712634,500.0,0.00015087,2]
[392486069,1761556712670,500.0,0.00015087,2]
[392486070,1761556712706,500.0,0.00015087,2]
[392486071,1761556712745,500.0,0.00015087,2]
[392486072,1761556712780,160.97773096,0.00015087,2]
[392486073,1761556712815,433.15883515,0.00015087,2]
[392486074,1761556712850,500.0,0.00015087,2]
[392486075,1761556712885,500.0,0.00015087,2]
[392486076,1761556712921,500.0,0.00015087,2]
[392486077,1761556712957,500.0,0.00015087,2]
[392486078,1761556713000,500.0,0.00015087,2]
[392486079,1761556713037,500.0,0.00015087,2]
[392486080,1761556713071,290.28539008,0.00015087,2]
[392486081,1761556713106,500.0,0.00015087,2]
[392486082,1761556713141,500.0,0.00015087,2]
[392486083,1761556713180,500.0,0.00015087,2]
[392486084,1761556713228,500.0,0.00015087,2]
[392486085,1761556713270,500.0,0.00015087,2]
[392486086,1761556713311,446.12156306,0.00015087,2]
[392486087,1761556713347,500.0,0.00015087,2]
[392486088,1761556713387,500.0,0.00015087,2]
[392486089,1761556713423,500.0,0.00015087,2]
[392486090,1761556713471,500.0,0.00015087,2]
[392486091,1761556713638,163.61728185,0.00015087,2]
[392486092,1761556713677,500.0,0.00015087,2]
[392486093,1761556713715,500.0,0.00015087,2]
[392486094,1761556713764,500.0,0.00015087,2]
[392486095,1761556713800,500.0,0.00015087,2]
[392486096,1761556713842,500.0,0.00015087,2]
[392486097,1761556713878,500.0,0.00015087,2]
[392486098,1761556713921,500.0,0.00015087,2]
[392486099,1761556713959,500.0,0.00015087,2]
[392486100,1761556713995,500.0,0.00015087,2]
[392486101,1761556714036,500.0,0.00015087,2]
[392486102,1761556714083,500.0,0.00015087,2]
[392486103,1761556714118,500.0,0.00015087,2]
[392486104,1761556714189,500.0,0.00015087,2]
[392486105,1761556714235,500.0,0.00015087,2]
[392486106,1761556714274,500.0,0.00015087,2]
[392486107,1761556714322,500.0,0.00015087,2]
[392486108,1761556714394,500.0,0.00015087,2]
[392486109,1761556714457,384.1621039,0.00015087,2]
[392486110,1761556714523,500.0,0.00015087,2]
[392486115,1761556784129,615.9268353,0.00015006,2]
[392486120,1761556839591,1271.1391346,0.00015,2]
[392486121,1761556863014,300.0,0.00015088,2]
[392486122,1761556922451,300.0,0.00015088,2]
[392486123,1761556940955,318.12139219,0.00015087,2]
[392486124,1761556974689,538.93598087,0.00015,2]
[392486125,1761556993696,1515.59240499,0.00014857,2]
[392486130,1761557042373,300.0,0.00015088,2]
[392486131,1761557080999,960.38,0.0001508,3]
[392486132,1761557091860,480.19,0.0001508,3]
[392486133,1761557102145,300.0,0.00015087,2]
[392486134,1761557102713,240.09,0.0001508,3]
[392486135,1761557106274,1200.0,0.00015087,2]
[392486142,1761557113558,720.3,0.0001508,3]
[392486144,1761557122537,300000.0,0.00030137,120]
[392486155,1761557162520,300.0,0.00015087,2]
[392486157,1761557164846,471.56898327,0.0001499,2]
[392486164,1761557182523,1016.91130768,0.00015004,2]
[392486168,1761557188081,5000.0,0.0003,120]
[392486179,1761557224032,300.0,0.00015088,2]
[392486185,1761557237633,175.5519983,0.00014988,2]
[392486339,1761557282722,300.0,0.00015088,2]
[392486357,1761557321698,271.0513002,0.0001515,20]
[392486362,1761557342765,300.0,0.00015087,2]
[392486365,1761557355215,412.62286037,0.00015,2]
[392486366,1761557356624,570.13,0.00015087,2]
[392486384,1761557394360,625.513074,0.00013699,2]
[392486387,1761557402942,300.0,0.00015087,2]
[392486391,1761557406728,1200.0,0.00015087,2]
[392486408,1761557432067,-198.9205989,0.00015088,2]
[392486409,1761557432077,-400.62161675,0.00015088,2]
[392486410,1761557432121,-228.66919235,0.00015088,2]
[392486411,1761557432131,-500.0,0.00015088,2]
[392486412,1761557432140,-327.34684034,0.00015088,2]
[392486413,1761557432149,-500.0,0.00015088,2]
[392486414,1761557432159,-185.98015897,0.00015088,2]
[392486415,1761557432171,-245.59340813,0.00015088,2]
[392486416,1761557432184,-522.85566982,0.00015089,2]
[392486417,1761557432194,-169.7021934,0.00015089,2]
[392486418,1761557432203,-104.91444056,0.00015089,2]
[392486419,1761557432215,-465.21555944,0.00015089,2]
[392486420,1761557432227,-570.13,0.00015089,2]
[392486421,1761557432236,-570.13,0.00015089,2]
[392486422,1761557432246,-570.13,0.00015089,2]
[392486423,1761557432255,-570.13,0.00015089,2]
[392486424,1761557432265,-570.13,0.00015089,2]
[392486425,1761557432274,-570.13,0.00015089,2]
[392486426,1761557432283,-570.13,0.00015089,2]
[392486427,1761557432292,-570.13,0.00015089,2]
[392486428,1761557432302,-570.13,0.00015089,2]
[392486429,1761557432312,-570.13,0.00015089,2]
[392486430,1761557432321,-3582.08244056,0.00015089,2]
[392486435,1761557437987,-952.58547617,0.00015089,2]
[392486436,1761557437999,-2195.56659874,0.00015089,2]
[392486789,1761557444066,-8761.07099164,0.0001509,2]
[392486822,1761557444364,-826.19,0.0001509,2]
[392486994,1761557446113,-22309.64097256,0.0001509,2]
[392487007,1761557446222,-2301.6,0.0001509,2]
[392487010,1761557446233,-11600.91149445,0.0001509,2]
[392487183,1761557447917,185566.23058557,0.0001499,2]
[392487187,1761557447949,184433.76941443,0.0001499,2]
[392488919,1761557616731,370000.0,0.0001499,2]
[392490173,1761557901029,927.9216474,0.00014965,2]
[392490458,1761557986679,1000.0,0.00015442,5]
[392490650,1761558585838,700.27836094,0.00015597,5]
[392490730,1761558632329,-172.2536928,0.00015068,2]
[392490732,1761558632339,-127.7463072,0.00015089,2]
[392490734,1761558632350,-372.2536928,0.00015089,2]
[392490736,1761558632359,-708.08683199,0.00015089,2]
[392491081,1761558643393,-491.91316801,0.00015089,2]
[392491083,1761558643403,-300.0,0.00015089,2]
[392491085,1761558643414,-1513.88683199,0.0001509,2]
[392491382,1761558646398,-354.58820835,0.0001509,2]
[392491389,1761558646453,-1188.12763186,0.0001509,2]
[392491391,1761558646463,-548.96322249,0.0001509,2]
[392491527,1761559036909,240.54,0.00030137,120]
[392491543,1761559273265,161.68149703,0.00014429,2]
[392491544,1761559312907,250.0,0.00014931,2]
[392491545,1761559393340,168.0,0.0001498,2]
[392491553,1761559657905,10000.0,0.00030137,120]
[392491554,1761559665525,10000.0,0.00030137,120]
[392491555,1761559678306,10000.0,0.00030137,120]
[392491556,1761559686573,10000.0,0.00030137,120]
[392491557,1761559701161,10000.0,0.00030137,120]
[392491558,1761559718435,10000.0,0.00030137,120]
[392491559,1761559731690,10000.0,0.00030137,120]
[392491560,1761559738543,10000.0,0.00030137,120]
[392491561,1761559745319,10000.0,0.00030137,120]
[392491565,1761559761200,6885.0,0.00030137,120]
[392491603,1761559832454,-266.54459002,0.00015089,2]
[392491605,1761559832464,-300.0,0.00015089,2]
[392491607,1761559832474,-112.97957308,0.00015089,2]
[392491612,1761559832507,-586.02042692,0.00015089,2]
[392491614,1761559832518,-8590.0404447,0.0001509,2]
[392491616,1761559832527,-834.19953,0.0001509,2]
[392491618,1761559832537,-433.413,0.0001509,2]
[392491620,1761559832546,-500.0,0.000151,2]
[392491622,1761559832555,-168.0,0.00015156,2]
[392491624,1761559832565,-500.0,0.000152,2]
[392491626,1761559832574,-500.0,0.00015221,2]
[392491628,1761559832583,-168.0,0.00015254,2]
[392491630,1761559832593,-10277.8676449,0.00015254,2]
[392491631,1761559832602,-168.0,0.00015254,2]
[392491634,1761559832614,-423.77996465,0.00015277,2]
[392491637,1761559832625,-168.0,0.00015312,2]
[392491640,1761559832634,-316.1757627,0.00015413,2]
[392491643,1761559832643,-500.0,0.000155,2]
[392491646,1761559832654,-168.0,0.00015518,2]
[392491649,1761559832664,-168.0,0.00015564,2]
[392491651,1761559832673,-984.0,0.00015567,2]
[392491653,1761559832683,-632.0,0.00015567,2]
[392491655,1761559832692,-223.4151227,0.000156,2]
[392491657,1761559832702,-153.0,0.000156,2]
[392491659,1761559832712,-153.0,0.000156,2]
[392491661,1761559832721,-153.0,0.000156,2]
[392491663,1761559832731,-153.0,0.000156,2]
[392491665,1761559832741,-2166.0,0.00015617,2]
[392491667,1761559832750,-411.0,0.00015622,2]
[392491669,1761559832759,-412.949,0.00015622,2]
[392491671,1761559832767,-361.04500278,0.00015733,2]
[392491673,1761559832777,-168.0,0.00015832,2]
[392491675,1761559832787,-168.0,0.00015886,2]
[392491677,1761559832797,-432.72,0.00015893,2]
[392491679,1761559832806,-4384.26051148,0.00015898,2]
[392491681,1761559832816,-172.883056,0.00015898,2]
[392491684,1761559832826,-172.883056,0.00015898,2]
[392491685,1761559832836,-172.883056,0.00015898,2]
[392491688,1761559832845,-172.883056,0.00015898,2]
[392491690,1761559832855,-151.683774,0.00015898,2]
[392491692,1761559832864,-168.0,0.00015926,2]
[392491694,1761559832873,-168.0,0.00015989,2]
[392491696,1761559832883,-500.0,0.0001599,2]
[392491698,1761559832893,-42451.76649112,0.0001599,2]
[392491700,1761559832906,-151.0,0.0001599,2]
[392491702,1761559832915,-172.883056,0.0001599,2]
[392491704,1761559832925,-172.883056,0.0001599,2]
[392491706,1761559832934,-172.883056,0.0001599,2]
[392491708,1761559832947,-172.883056,0.0001599,2]
[392491710,1761559832956,-151.0,0.0001599,2]
[392491712,1761559832966,-153.184575,0.0001599,2]
[392491714,1761559832976,-168.0,0.00015993,2]
[392491716,1761559832985,-332.89000075,0.00016,2]
[392491718,1761559832994,-300.0,0.00016003,2]
[392491720,1761559833004,-300.0,0.00016003,2]
[392491722,1761559833013,-300.0,0.00016003,2]
[392491724,1761559833023,-300.0,0.00016003,2]
[392491726,1761559833033,-300.0,0.00016003,2]
[392491728,1761559833044,-300.0,0.00016003,2]
[392491730,1761559833053,-300.0,0.00016003,2]
[392491732,1761559833063,-300.0,0.00016003,2]
[392491735,1761559833075,-300.0,0.00016003,2]
[392491737,1761559833085,-300.0,0.00016003,2]
[392491739,1761559833095,-300.0,0.00016003,2]
[392491741,1761559833105,-300.0,0.00016003,2]
[392491743,1761559833115,-300.0,0.00016003,2]
[392491745,1761559833124,-300.0,0.00016003,2]
[392491747,1761559833135,-300.0,0.00016003,2]
[392491749,1761559833144,-600.0,0.00016003,2]
[392491751,1761559833154,-151.0,0.00016003,2]
[392491754,1761559833164,-500.0,0.00016003,2]
[392491756,1761559833175,-151.0,0.00016003,2]
[392491757,1761559833185,-500.0,0.00016031,2]
[392491758,1761559833194,-150.106,0.00016032,2]
[392491759,1761559833203,-150.079,0.00016032,2]
[392491760,1761559833213,-198.0,0.00016058,2]
[392491761,1761559833223,-500.0,0.00016058,2]
[392491762,1761559833233,-198.0,0.00016058,2]
[392491763,1761559833244,-151.0,0.00016058,2]
[392491764,1761559833253,-168.0,0.00016104,2]
[392491765,1761559833263,-501.54432108,0.00016113,2]
[392491766,1761559833273,-151.0,0.00016113,2]
[392491767,1761559833283,-172.883056,0.00016113,2]
[392491768,1761559833293,-172.883056,0.00016113,2]
[392491769,1761559833302,-172.883056,0.00016113,2]
[392491770,1761559833311,-172.883056,0.00016113,2]
[392491771,1761559833322,-168.0,0.00016193,2]
[392491772,1761559833332,-500.0,0.000162,2]
[392491773,1761559833343,-151.0,0.00016391,2]
[392491774,1761559833353,-151.0,0.00016391,2]
[392491775,1761559833363,-186.36166,0.00016391,2]
[392491776,1761559833372,-168.0,0.00016391,2]
[392491777,1761559833382,-168.0,0.00016406,2]
[392491778,1761559833391,-503.96063535,0.00016438,2]
[392491779,1761559833401,-168.0,0.00016457,2]
[392491780,1761559833411,-1000.0,0.000165,2]
[392491781,1761559833420,-420.0,0.00016513,2]
[392491782,1761559833429,-797.17960293,0.00016628,2]
[392491783,1761559833439,-151.50853,0.00016673,2]
[392491784,1761559833448,-1001.24102601,0.000168,2]
[392491785,1761559833458,-160.85611,0.00016803,2]
[392491786,1761559833468,-172.883056,0.00016803,2]
[392491787,1761559833478,-172.883056,0.00016803,2]
[392491788,1761559833487,-172.883056,0.00016803,2]
[392491789,1761559833496,-172.883056,0.00016803,2]
[392491790,1761559833506,-813.52904612,0.00016808,2]
[392491791,1761559833515,-218.50991463,0.00016814,2]
[392491792,1761559833525,-168.0,0.00016823,2]
[392491793,1761559833534,-560.22,0.0001688,3]
[392491794,1761559833543,-280.11,0.0001688,3]
[392491795,1761559833552,-840.33,0.0001688,3]
[392491796,1761559833562,-151.0,0.0001689,2]
[392491797,1761559833571,-151.0,0.0001689,2]
[392491798,1761559833581,-172.883056,0.0001689,2]
[392491799,1761559833591,-172.883056,0.0001689,2]
[392491800,1761559833600,-70.53848189,0.0001689,2]
[392491807,1761559838401,-102.34457411,0.0001689,2]
[392491808,1761559838411,-172.883049,0.0001689,2]
[392491809,1761559838421,-105.04496837,0.0001689,2]
[392492105,1761559843697,-115180.00000001,0.0001689,2]
[392492261,1761559846582,-780.54771925,0.0001689,2]
[392492262,1761559907586,10000.0,0.000191,30]
[392492263,1761559921113,10000.0,0.000191,30]
[392492265,1761559933024,1753.26,0.000191,30]
[392492267,1761560166654,400.0,0.00030136,120]
[392492268,1761560222020,594.23742,0.00013699,2]
[392492276,1761560263747,811.305326,0.00017961,14]
[392492277,1761560266568,811.305326,0.00018,20]
[392492283,1761560670453,187.371,0.00030136,120]
[392492517,1761561032640,-442.82163918,0.000153,2]
[392492518,1761561032650,-358.66956461,0.00015711,2]
[392492519,1761561032660,-300.0,0.00015812,2]
[392492520,1761561032669,-300.0,0.00015812,2]
[392492521,1761561032679,-300.0,0.00015812,2]
[392492522,1761561032689,-111.13694385,0.00015812,2]
[392492540,1761561038535,-584.20647668,0.00015812,2]
[392492541,1761561038547,-504.65657947,0.00015812,2]
[392492542,1761561038557,-984.0,0.00015813,2]
[392492543,1761561038566,-379.69506,0.00015813,2]
[392492544,1761561038577,-252.30494,0.00015813,2]
[392492545,1761561038587,-134.8293171,0.00015813,2]
[392492546,1761561038599,-2031.1706829,0.00015813,2]
[392492547,1761561038608,-70.82677206,0.00015813,2]
[392492548,1761561038620,-341.17322794,0.00015813,2]
[392492549,1761561038630,-323.3503947,0.00016,2]
[392492550,1761561038640,-300.0,0.00016128,2]
[392492551,1761561038649,-274.9875344,0.00016128,2]
[392492552,1761561038660,-25.0124656,0.00016128,2]
[392492553,1761561038670,-300.0,0.00016128,2]
[392492554,1761561038679,-300.0,0.00016128,2]
[392492555,1761561038689,-300.0,0.00016128,2]
[392492556,1761561038698,-227.66915962,0.00016128,2]
[392492557,1761561038709,-72.33084038,0.00016128,2]
[392492558,1761561038719,-300.0,0.00016128,2]
[392492559,1761561038731,-300.0,0.00016128,2]
[392492560,1761561038742,-300.0,0.00016128,2]
[392492561,1761561038751,-264.62065651,0.00016128,2]
[392492565,1761561038790,-35.37934349,0.00016128,2]
[392492567,1761561038800,-300.0,0.00016128,2]
[392492568,1761561038812,-300.0,0.00016128,2]
[392492569,1761561038823,-300.0,0.00016128,2]
[392492570,1761561038832,-300.0,0.00016128,2]
[392492571,1761561038842,-300.0,0.00016128,2]
[392492572,1761561038852,-415.36624136,0.00016128,2]
[392492573,1761561038862,-600.0,0.0001645,2]
[392492574,1761561038871,-650.82323692,0.000167,2]
[392492575,1761561038881,-301.3,0.0001676,2]
[392492576,1761561038890,-280.11,0.0001678,3]
[392492577,1761561038899,-840.33,0.0001678,3]
[392492578,1761561038908,-16467.20828587,0.0001679,2]
[392492579,1761561038920,-3447.30399741,0.0001679,2]
[392492580,1761561038931,-20103.0,0.0001679,2]
[392492581,1761561038943,-351.91826975,0.0001679,2]
[392492582,1761561038954,-1005.32271479,0.0001679,2]
[392492583,1761561038965,-6892.6165197,0.0001679,2]
[392492647,1761561043759,-6988.6496673,0.0001679,2]
[392492661,1761561260917,1996.50363176,0.0003,120]
[392492707,1761561489806,597.32962,0.00030136,120]
[392492734,1761561802661,37625.0977674,0.0001825,9]
[392492892,1761562231893,-300.0,0.00015917,2]
[392492894,1761562231904,-517.68241253,0.00015918,2]
[392493013,1761562237696,-466.31758747,0.00015918,2]
[392493014,1761562237706,-632.0,0.00015918,2]
[392493015,1761562237716,-2166.0,0.00015918,2]
[392493016,1761562237725,-3972.24592981,0.00016,2]
[392493017,1761562237734,-300.0,0.00016235,2]
[392493018,1761562237744,-300.0,0.00016235,2]
[392493019,1761562237753,-300.0,0.00016235,2]
[392493020,1761562237763,-300.0,0.00016235,2]
[392493021,1761562237773,-300.0,0.00016235,2]
[392493022,1761562237782,-300.0,0.00016235,2]
[392493023,1761562237792,-300.0,0.00016235,2]
[392493024,1761562237801,-300.0,0.00016235,2]
[392493025,1761562237811,-300.0,0.00016235,2]
[392493026,1761562237820,-300.0,0.00016235,2]
[392493027,1761562237829,-300.0,0.00016235,2]
[392493028,1761562237839,-300.0,0.00016235,2]
[392493029,1761562237849,-300.0,0.00016235,2]
[392493030,1761562237859,-300.0,0.00016235,2]
[392493031,1761562237868,-179.50739667,0.00016235,2]
[392493032,1761562237903,-120.49260333,0.00016235,2]
[392493033,1761562237912,-500.0,0.00016235,2]
[392493034,1761562237922,-308.49085038,0.00016235,2]
[392493035,1761562237932,-104.05563101,0.00016235,2]
[392493036,1761562237942,-600.0,0.00016559,2]
[392493037,1761562237951,-999.39522892,0.0001668,2]
[392493038,1761562237962,-500.23044337,0.0001668,2]
[392493039,1761562237973,-435.0,0.0001668,2]
[392493421,1761562311615,1500.0,0.00015,2]
[392493444,1761562597671,154.83448247,0.000301,120]
[392493451,1761562897321,200.0,0.0003,120]
[392493481,1761563328317,564.525549,0.00013699,2]
[392493484,1761563346465,28455.51640119,0.0003,120]
[392493618,1761563440171,-300.0,0.00015917,2]
[392493620,1761563440181,-70.00919999,0.00015918,2]
[392493625,1761563440226,-307.34,0.00015918,2]
[392493783,1761564522156,584.139835,0.00017961,14]
[392493787,1761564526071,584.139835,0.00018,20]
[392493891,1761564632319,-387.00875031,0.000159,2]
[392493893,1761564632329,-815.84214271,0.00015917,2]
[392493903,1761564638109,-3602.15785729,0.00015917,2]
[392493904,1761564638119,-300.0,0.00015934,2]
[392493905,1761564638128,-984.0,0.00015935,2]
[392493906,1761564638138,-632.0,0.00015935,2]
[392493907,1761564638148,-2166.0,0.00015935,2]
[392493908,1761564638157,-412.0,0.00015935,2]
[392493909,1761564638167,-351.91826975,0.0001599,2]
[392493910,1761564638177,-500.0,0.00015999,2]
[392493911,1761564638188,-595.3777975,0.00016,2]
[392493912,1761564638198,-2891.54607546,0.00016,2]
[392494244,1761564643984,-5702.4503327,0.00016,2]
[392494397,1761564774367,671.76081,0.00017961,14]
[392494398,1761564779031,671.76081,0.00018,20]
[392494414,1761565652409,-262.61154101,0.00015009,2]
[392494423,1761565771765,155.0,0.00030136,120]
[392494424,1761565807955,5000.0,0.0001825,9]
[392494673,1761565838383,5000.0,0.0001825,9]
[392494752,1761565841097,-300.0,0.00015783,2]
[392494754,1761565841107,-846.0,0.00015783,2]
[392494756,1761565841116,-984.0,0.00015784,2]
[392494758,1761565841124,-632.0,0.00015784,2]
[392494760,1761565841134,-412.0,0.00015784,2]
[392494762,1761565841142,-2166.0,0.00015784,2]
[392494764,1761565841152,-151.0,0.00015999,2]
[392494766,1761565841161,-151.0,0.00015999,2]
[392494768,1761565841171,-500.0,0.00015999,2]
[392494770,1761565841180,-500.0,0.00015999,2]
[392494772,1761565841188,-598.24777589,0.00015999,2]
[392494774,1761565841197,-500.0,0.00015999,2]
[392494776,1761565841206,-4.81652986,0.00015999,2]
[392494778,1761565841222,-204.9788471,0.00015999,2]
[392494780,1761565841232,-19650.33773906,0.00016,2]
[392494782,1761565841241,-151.0,0.00016,2]
[392494784,1761565841250,-151.0,0.00016,2]
[392494786,1761565841260,-196.0,0.00016,2]
[392494788,1761565841269,-409.76700366,0.00016,2]
[392494790,1761565841279,-160.0,0.000162,2]
[392494792,1761565841289,-160.0,0.000162,2]
[392494794,1761565841298,-266.54459002,0.00016235,2]
[392494796,1761565841307,-338.63265653,0.00016379,2]
[392494798,1761565841316,-1168.8977186,0.0001639,2]
[392494800,1761565841326,-42367.31129201,0.0001639,2]
[392494965,1761565843624,-1593.6518172,0.0001639,2]
[392494986,1761566111651,536.299271,0.00013699,2]
[392495025,1761566963934,291.61080875,0.0003,120]
[392495048,1761567032664,-300.0,0.00015507,2]
[392495049,1761567032675,-258.5776037,0.00015822,2]
[392495050,1761567032687,-41.4223963,0.00015822,2]
[392495051,1761567032697,-913.59106323,0.00015822,2]
[392495052,1761567032709,-286.40893677,0.00015822,2]
[392495053,1761567032718,-632.0,0.00015823,2]
[392495054,1761567032728,-984.0,0.00015823,2]
[392495055,1761567032737,-2166.0,0.00015823,2]
[392495056,1761567032746,-412.0,0.00015823,2]
[392495057,1761567032757,-1205.6797487,0.00016179,2]
[392495058,1761567032766,-81.41131453,0.00016317,2]
[392495075,1761567038606,-214.89225989,0.00016317,2]
[392495076,1761567038616,-262.57680743,0.00016317,2]
[392495077,1761567038626,-861.24,0.0001638,3]
[392495078,1761567038635,-151.0,0.00016388,2]
[392495079,1761567038645,-405.64902474,0.00016388,2]
[392495080,1761567038654,-500.0,0.00016388,2]
[392495082,1761567038664,-104.67657847,0.00016388,2]
[392495166,1761567041183,-395.32342153,0.00016388,2]
[392495168,1761567041192,-500.0,0.00016388,2]
[392495170,1761567041202,-210.0,0.00016388,2]
[392495172,1761567041211,-500.0,0.00016388,2]
[392495173,1761567041220,-500.0,0.00016388,2]
[392495175,1761567041230,-512.76182798,0.00016388,2]
[392495177,1761567041239,-500.0,0.00016388,2]
[392495178,1761567041248,-500.0,0.00016388,2]
[392495179,1761567041257,-500.0,0.00016388,2]
[392495180,1761567041266,-500.0,0.00016388,2]
[392495181,1761567041275,-493.26912917,0.00016388,2]
[392495182,1761567041286,-6.73087083,0.00016388,2]
[392495184,1761567041295,-488.04720101,0.00016388,2]
[392495185,1761567041305,-161.95279899,0.00016388,2]
[392495186,1761567041315,-500.0,0.00016388,2]
[392495187,1761567041324,-500.0,0.00016388,2]
[392495188,1761567041333,-500.0,0.00016388,2]
[392495189,1761567041343,-500.0,0.00016388,2]
[392495190,1761567041352,-390.0,0.00016388,2]
[392495191,1761567041361,-151.0,0.00016389,2]
[392495192,1761567041370,-500.0,0.00016389,2]
[392495193,1761567041379,-500.0,0.00016389,2]
[392495195,1761567041388,-500.0,0.00016389,2]
[392495197,1761567041397,-500.0,0.00016389,2]
[392495199,1761567041406,-500.0,0.00016389,2]
[392495201,1761567041415,-500.0,0.00016389,2]
[392495203,1761567041425,-500.0,0.00016389,2]
[392495204,1761567041434,-500.0,0.00016389,2]
[392495206,1761567041444,-341.71375515,0.00016389,2]
[392495208,1761567041454,-1471.16,0.00016389,2]
[392495210,1761567041463,-151.0,0.0001639,2]
[392495212,1761567041473,-151.0,0.0001639,2]
[392495215,1761567041483,-48852.67344586,0.0001639,2]
[392495217,1761567041502,-1050.71292962,0.0001639,2]
[392495419,1761567043649,-272.77667596,0.0001639,2]
[392495421,1761567043662,-8261.48,0.0001639,2]
[392495431,1761567043757,-39437.32350875,0.0001639,2]
[392495573,1761567046868,-4583.82697975,0.0001639,2]
[392495574,1761567046888,-480.0,0.0001639,2]
[392495575,1761567048181,5000.0,0.0001825,9]
[392495597,1761567163592,483.667783,0.00017961,14]
[392495598,1761567167669,483.667783,0.00018,20]
[392495600,1761567381300,5090.374,0.000181,10]
[392495604,1761567548889,1000.0,1.8e-05,5]
[392495605,1761567762343,556.217951,0.00017961,14]
[392495606,1761567765966,556.217951,0.00018,20]
[392495673,1761568057219,412.0,0.00014963,2]
[392495679,1761568079853,412.0,0.00014963,2]
[392495687,1761568103085,412.0,0.00014963,2]
[392495698,1761568126155,412.0,0.00014963,2]
[392495705,1761568149242,412.0,0.00014963,2]
[392495738,1761568172734,412.0,0.00014963,2]
[392495739,1761568195154,412.0,0.00014963,2]
[392495763,1761568217567,412.0,0.00014963,2]
[392495894,1761568233498,412.0,0.00014963,2]